fUST/lending_fUST_20250921
["ID","MTS","AMOUNT","RATE_DAILY","PERIOD"]
[386604315,1758415389373,340.60358944,0.00019664,2]
[386604316,1758415399628,953.36,0.00019664,2]
[386604318,1758415400192,480.0,0.00019664,2]
[386604319,1758415412753,480.0,0.00019664,2]
[386604320,1758415412958,480.0,0.00019664,2]
[386604321,1758415420958,480.0,0.00019664,2]
[386604322,1758415424685,480.0,0.00019664,2]
[386604323,1758415433259,505.91065217,0.00019664,2]
[386604324,1758415433967,785.94,0.00019664,2]
[386604325,1758415441139,480.0,0.00019664,2]
[386604326,1758415445465,870.14,0.00019387,2]
[386604327,1758415445795,480.0,0.00019664,2]
[386604328,1758415448903,480.0,0.00019664,2]
[386604329,1758415455818,480.0,0.00019664,2]
[386604330,1758415460024,480.0,0.00019664,2]
[386604331,1758415461276,480.0,0.00019664,2]
[386604332,1758415461577,480.0,0.00019664,2]
[386604333,1758415462659,480.0,0.00019664,2]
[386604334,1758415464535,304.05575839,0.00019664,2]
[386604335,1758415464559,175.94424161,0.00019664,2]
[386604336,1758415489234,862.52,0.00019664,2]
[386604337,1758415495588,480.0,0.00019664,2]
[386604338,1758415495619,480.0,0.00019664,2]
[386604339,1758415500458,480.0,0.00019664,2]
[386604340,1758415500530,2139.7122082,0.00019565,2]
[386604341,1758415502162,300.0,0.00019664,2]
[386604342,1758415503158,489.18,0.00019664,2]
[386604343,1758415506392,480.0,0.00019664,2]
[386604344,1758415506622,750.0,0.00019664,2]
[386604345,1758415511671,593.86,0.00019664,2]
[386604346,1758415515397,480.0,0.00019664,2]
[386604347,1758415524262,480.0,0.00019664,2]
[386604348,1758415528306,891.82,0.00019387,2]
[386604349,1758415529885,916.97355019,0.00019664,2]
[386604350,1758415529909,282.56644981,0.00019664,2]
[386604351,1758415530099,-432.0,0.00019665,2]
[386604352,1758415530987,480.0,0.00019664,2]
[386604353,1758415535817,480.0,0.00019664,2]
[386604354,1758415548926,480.0,0.00019664,2]
[386604355,1758415551250,1365.81,0.00019664,2]
[386604356,1758415559195,341.7726765,0.00019664,2]
[386604357,1758415562988,300.0,0.00019664,2]
[386604358,1758415563464,480.0,0.00019664,2]
[386604359,1758415567572,590.49,0.00019664,2]
[386604360,1758415571222,813.94,0.00019664,2]
[386604361,1758415572400,302.57643837,0.00019546,2]
[386604362,1758415584001,158.56351314,0.00019565,2]
[386604363,1758415593063,988.9,0.00019664,2]
[386604364,1758415602586,480.0,0.00019664,2]
[386604365,1758415606076,480.0,0.00019664,2]
[386604366,1758415606209,480.0,0.00019664,2]
[386604367,1758415609345,480.0,0.00019664,2]
[386604368,1758415609605,916.63,0.00019382,2]
[386604369,1758415609676,98.76092218,0.00019664,2]
[386604370,1758415609698,381.23907782,0.00019664,2]
[386604371,1758415618994,480.0,0.00019664,2]
[386604372,1758415619030,487.78231473,0.00019664,2]
[386604373,1758415622308,300.0,0.00019664,2]
[386604374,1758415625038,480.0,0.00019664,2]
[386604375,1758415629142,-432.0,0.00019665,2]
[386604376,1758415629303,606.65,0.00019664,2]
[386604377,1758415633079,-170.4879,0.00019665,2]
[386604378,1758415639386,480.0,0.00019664,2]
[386604379,1758415639856,480.0,0.00019664,2]
[386604380,1758415645428,956.04,0.00019664,2]
[386604381,1758415646088,-2040.138,0.00019665,2]
[386604382,1758415650211,480.0,0.00019664,2]
[386604383,1758415651465,480.0,0.00019664,2]
[386604384,1758415653656,480.0,0.00019664,2]
[386604385,1758415655857,651.28,0.00019664,2]
[386604386,1758415658180,480.0,0.00019664,2]
[386604387,1758415659238,480.0,0.00019664,2]
[386604388,1758415663171,1042.43,0.00019664,2]
[386604389,1758415666778,776.82,0.00019664,2]
[386604390,1758415671121,477.76860745,0.00019664,2]
[386604391,1758415671146,303.72139255,0.00019664,2]
[386604392,1758415671694,480.0,0.00019664,2]
[386604393,1758415671751,480.0,0.00019664,2]
[386604394,1758415676187,480.0,0.00019664,2]
[386604395,1758415682560,483.41667462,0.00019664,2]
[386604396,1758415683449,480.0,0.00019664,2]
[386604397,1758415687785,277.46909714,0.00019664,2]
[386604398,1758415691229,935.32,0.00019384,2]
[386604399,1758415692596,302.57643837,0.00019268,2]
[386604400,1758415692804,169.83065531,0.0001946,2]
[386604401,1758415698244,480.0,0.00019664,2]
[386604402,1758415698669,480.0,0.00019664,2]
[386604403,1758415701079,480.0,0.00019664,2]
[386604404,1758415702971,480.0,0.00019664,2]
[386604405,1758415703119,573.98293703,0.00019664,2]
[386604406,1758415705874,480.0,0.00019664,2]
[386604407,1758415707630,480.0,0.00019664,2]
[386604408,1758415711210,402.24387076,0.00019664,2]
[386604409,1758415713386,480.0,0.00019664,2]
[386604410,1758415715649,480.0,0.00019664,2]
[386604411,1758415720003,480.0,0.00019664,2]
[386604412,1758415722497,311.44893422,0.00019664,2]
[386604413,1758415722520,515.13106578,0.00019664,2]
[386604414,1758415727039,480.0,0.00019664,2]
[386604415,1758415727285,480.0,0.00019664,2]
[386604416,1758415735603,482.34976014,0.00019664,2]
[386604417,1758415738175,596.74,0.00019664,2]
[386604418,1758415739222,480.0,0.00019664,2]
[386604419,1758415745263,480.0,0.00019664,2]
[386604420,1758415746387,480.0,0.00019664,2]
[386604421,1758415755627,1426.47480546,0.00019565,2]
[386604422,1758415773236,480.0,0.00019664,2]
[386604423,1758415773525,480.0,0.00019664,2]
[386604424,1758415777588,569.11,0.00019664,2]
[386604425,1758415777791,1308.9,0.00019664,2]
[386604426,1758415778371,957.74,0.00019386,2]
[386604427,1758415786503,480.0,0.00019664,2]
[386604428,1758415789655,303.56436862,0.00019664,2]
[386604429,1758415789677,176.43563138,0.00019664,2]
[386604430,1758415791117,480.0,0.00019664,2]
[386604431,1758415791327,480.0,0.00019664,2]
[386604432,1758415797045,780.03,0.00019664,2]
[386604433,1758415800343,480.0,0.00019664,2]
[386604434,1758415801280,480.0,0.00019664,2]
[386604435,1758415804016,565.88,0.00019664,2]
[386604535,1758415840586,-0.00298029,0.00019665,2]
[386604539,1758415840616,-159.99701971,0.00019665,2]
[386604541,1758415840625,-24619.23411817,0.00019665,2]
[386604873,1758415845738,947.69,0.00019664,2]
[386604940,1758415846447,-1731.58399412,0.00019665,2]
[386604957,1758415846606,-2953.66725165,0.00019665,2]
[386605116,1758415848122,480.0,0.00019664,2]
[386605228,1758415849472,500.0,0.00019664,2]
[386605704,1758415855381,480.0,0.00019664,2]
[386605844,1758415857375,480.0,0.00019664,2]
[386605951,1758415859588,480.0,0.00019664,2]
[386605952,1758415860384,484.63023274,0.00019664,2]
[386605953,1758415860764,978.65,0.00019384,2]
[386605954,1758415863228,480.0,0.00019664,2]
[386605955,1758415863261,480.0,0.00019664,2]
[386605956,1758415865800,480.0,0.00019664,2]
[386605957,1758415866376,286.69413588,0.00019664,2]
[386605958,1758415866401,712.29586412,0.00019664,2]
[386605959,1758415866846,581.38,0.00019664,2]
[386605960,1758415870258,480.0,0.00019664,2]
[386605961,1758415871357,480.0,0.00019664,2]
[386605962,1758415878210,480.0,0.00019664,2]
[386605963,1758415884177,916.21,0.00019664,2]
[386605964,1758415885428,748.93,0.00019664,2]
[386605965,1758415888748,480.0,0.00019664,2]
[386605966,1758415896865,480.0,0.00019664,2]
[386605967,1758415897746,480.0,0.00019664,2]
[386605968,1758415908251,482.22800759,0.00019664,2]
[386605969,1758415911532,480.0,0.00019664,2]
[386605970,1758415912264,158.56351314,0.00019565,2]
[386605971,1758415913691,480.0,0.00019664,2]
[386605972,1758415914172,480.0,0.00019664,2]
[386605973,1758415917627,377.24,0.00019655,3]
[386605974,1758415920103,624.15,0.00019664,2]
[386605975,1758415921868,480.0,0.00019664,2]
[386605976,1758415924880,480.0,0.00019664,2]
[386605977,1758415926203,119.01261515,0.00019664,2]
[386605978,1758415926227,360.98738485,0.00019664,2]
[386605979,1758415928832,480.0,0.00019664,2]
[386605980,1758415935264,302.54622906,0.00019566,2]
[386605981,1758415936819,177.34,0.00019664,2]
[386605982,1758415940208,826.41,0.00019664,2]
[386605983,1758415942597,966.19,0.00019381,2]
[386605984,1758415964288,480.0,0.00019664,2]
[386605985,1758415969317,159.0,8e-07,2]
[386605986,1758415970094,480.0,0.00019664,2]
[386605987,1758415970357,159.0,8e-07,2]
[386605988,1758415971400,159.0,8e-07,2]
[386605989,1758415971717,480.0,0.00019664,2]
[386605990,1758415975595,1328.4,0.00019664,2]
[386605991,1758415976999,410.35247587,0.00019664,2]
[386605992,1758415979290,480.0,0.00019664,2]
[386605993,1758415980027,480.0,0.00019664,2]
[386605994,1758415981352,480.0,0.00019664,2]
[386605995,1758415982935,300.0,0.00019664,2]
[386605996,1758415987291,480.0,0.00019664,2]
[386605997,1758415987319,480.0,0.00019664,2]
[386605998,1758415991899,480.0,0.00019664,2]
[386605999,1758415998449,50.78391022,0.00019664,2]
[386606000,1758415998476,545.36608978,0.00019664,2]
[386606001,1758416000844,480.0,0.00019664,2]
[386606002,1758416002188,1254.36,0.00019664,2]
[386606003,1758416011015,950.98320364,0.00019664,2]
[386606004,1758416012565,1273.05,0.00019664,2]
[386606005,1758416021297,767.53,0.00019664,2]
[386606006,1758416022850,480.0,0.00019664,2]
[386606007,1758416024872,953.89,0.0001958,2]
[386606008,1758416032654,480.0,0.00019664,2]
[386606009,1758416037517,480.0,0.00019664,2]
[386606010,1758416040883,585.09,0.00019664,2]
[386606011,1758416042928,300.0,0.00019664,2]
[386606012,1758416049867,1449.74070658,0.00019565,2]
[386606013,1758416049890,10000.01,0.00019565,2]
[386606014,1758416049915,10000.01,0.00019565,2]
[386606015,1758416050054,10000.01,0.00019565,2]
[386606016,1758416050077,10000.01,0.00019565,2]
[386606017,1758416050100,10000.01,0.00019565,2]
[386606018,1758416050122,10000.01,0.00019565,2]
[386606019,1758416050144,10000.01,0.00019565,2]
[386606020,1758416050167,10000.01,0.00019565,2]
[386606021,1758416050189,10000.01,0.00019565,2]
[386606022,1758416074184,245.81975558,0.00019564,2]
[386606023,1758416074395,275.46025895,0.00019564,2]
[386606024,1758416074640,500.0,0.00019564,2]
[386606025,1758416074688,500.0,0.00019564,2]
[386606026,1758416074743,500.0,0.00019564,2]
[386606027,1758416074806,179.9976383,0.00019564,2]
[386606028,1758416075755,509.13542253,0.00019564,2]
[386606029,1758416075786,471.21048561,0.00019564,2]
[386606030,1758416075822,479.70279081,0.00019564,2]
[386606031,1758416079756,371.88854788,0.00019564,2]
[386606032,1758416102170,300.0,0.00019564,2]
[386606033,1758416105994,675.0,0.00019564,2]
[386606034,1758416107110,974.04,0.00019436,2]
[386606036,1758416153703,829.3055119,0.00018713,2]
[386606037,1758416162555,300.0,0.00019564,2]
[386606038,1758416189760,961.64,0.00019411,2]
[386606039,1758416213734,272.7534927,0.00018687,2]
[386606040,1758416220734,500.0,0.00019564,2]
[386606041,1758416222631,300.0,0.00019564,2]
[386606042,1758416228987,500.0,0.00019564,2]
[386606043,1758416235922,354.05609574,0.00019564,2]
[386606044,1758416235946,845.94390426,0.00019564,2]
[386606045,1758416236570,184.1830755,0.00019564,2]
[386606046,1758416240223,480.0,0.00019564,2]
[386606048,1758416243576,500.0,0.00019564,2]
[386606049,1758416251178,640.05,0.00019564,2]
[386606050,1758416253841,500.0,0.00019564,2]
[386606051,1758416253882,500.0,0.00019564,2]
[386606052,1758416253921,500.0,0.00019564,2]
[386606053,1758416254002,352.9142411,0.00019564,2]
[386606054,1758416254098,500.0,0.00019564,2]
[386606055,1758416263685,500.0,0.00019564,2]
[386606056,1758416263717,500.0,0.00019564,2]
[386606057,1758416263863,500.0,0.00019564,2]
[386606058,1758416263968,500.0,0.00019564,2]
[386606059,1758416270216,960.75,0.00019409,2]
[386606060,1758416271684,500.0,0.00019564,2]
[386606061,1758416271891,500.0,0.00019564,2]
[386606062,1758416273706,500.0,0.00019564,2]
[386606063,1758416283101,300.0,0.00019564,2]
[386606064,1758416288923,236.16877914,0.00019564,2]
[386606065,1758416288946,263.83122086,0.00019564,2]
[386606066,1758416288974,438.4357589,0.00019564,2]
[386606067,1758416289001,500.0,0.00019564,2]
[386606068,1758416289032,500.0,0.00019564,2]
[386606069,1758416289062,500.0,0.00019564,2]
[386606070,1758416289101,318.07381036,0.00019564,2]
[386606071,1758416292098,453.78913429,0.00019466,2]
[386606072,1758416299075,500.0,0.00019564,2]
[386606073,1758416299105,500.0,0.00019564,2]
[386606074,1758416299140,500.0,0.00019564,2]
[386606075,1758416299194,311.5642411,0.00019564,2]
[386606076,1758416303745,500.0,0.00019564,2]
[386606077,1758416307241,500.0,0.00019564,2]
[386606078,1758416311944,158.202551,0.00018662,2]
[386606079,1758416340007,1012.58,0.00019564,2]
[386606080,1758416342219,300.0,0.00019564,2]
[386606081,1758416352705,948.52,0.00019411,2]
[386606082,1758416353910,500.0,0.00019564,2]
[386606083,1758416354027,500.0,0.00019564,2]
[386606084,1758416355060,480.0,0.00019564,2]
[386606085,1758416360199,315.01328349,0.00019564,2]
[386606086,1758416360225,164.98671651,0.00019564,2]
[386606087,1758416373888,663.57,0.00019564,2]
[386606088,1758416389793,918.03,0.00019564,2]
[386606089,1758416404151,182.93,0.00019564,2]
[386606090,1758416412438,480.0,0.00019564,2]
[386606091,1758416414895,480.0,0.00019564,2]
[386606092,1758416419216,480.0,0.00019564,2]
[386606093,1758416427255,480.0,0.00019564,2]
[386606094,1758416434448,936.45,0.00019397,2]
[386606095,1758416436301,480.0,0.00019564,2]
[386606096,1758416440930,365.02205345,0.00019564,2]
[386606097,1758416441262,480.0,0.00019564,2]
[386606098,1758416469098,480.0,0.00019564,2]
[386606099,1758416474471,480.0,0.00019564,2]
[386606100,1758416481226,480.0,0.00019564,2]
[386606101,1758416485369,613.38,0.00019564,2]
[386606102,1758416487616,480.0,0.00019564,2]
[386606103,1758416489608,508.79,0.00019564,2]
[386606104,1758416516780,846.85123004,0.00019402,2]
[386606105,1758416516805,102.98876996,0.00019402,2]
[386606106,1758416529182,480.0,0.00019564,2]
[386606107,1758416533647,1324.63,0.00019564,2]
[386606108,1758416543937,480.0,0.00019564,2]
[386606109,1758416547179,585.38,0.00019564,2]
[386606111,1758416564768,184.1830755,0.00019564,2]
[386606112,1758416565420,970.39,0.00019564,2]
[386606113,1758416578370,480.0,0.00019564,2]
[386606114,1758416581429,480.0,0.00019564,2]
[386606115,1758416582779,480.0,0.00019564,2]
[386606117,1758416598952,960.83,0.00019402,2]
[386606118,1758416599860,635.92,0.00019564,2]
[386606119,1758416607862,480.0,0.00019564,2]
[386606120,1758416615817,879.78,0.00019564,2]
[386606121,1758416619752,480.0,0.00019564,2]
[386606122,1758416621347,804.63,0.00019564,2]
[386606123,1758416639351,191.27815454,0.00019564,2]
[386606124,1758416639376,579.82184546,0.00019564,2]
[386606125,1758416641220,737.72,0.00019564,2]
[386606126,1758416653307,391.09807646,0.00019564,2]
[386606127,1758416661391,480.0,0.00019564,2]
[386606129,1758416665320,480.0,0.00019564,2]
[386606130,1758416674672,480.0,0.00019564,2]
[386606131,1758416677636,480.0,0.00019564,2]
[386606132,1758416681838,972.93,0.00019401,2]
[386606133,1758416700847,887.39,0.00019564,2]
[386606134,1758416701068,487.59,0.00019564,2]
[386606135,1758416707284,480.0,0.00019564,2]
[386606136,1758416710999,480.0,0.00019564,2]
[386606137,1758416713806,480.0,0.00019564,2]
[386606138,1758416717404,480.0,0.00019564,2]
[386606139,1758416721295,587.82,0.00019564,2]
[386606140,1758416732391,480.0,0.00019564,2]
[386606141,1758416738051,438.08554039,0.00019564,2]
[386606142,1758416752262,-480.0,0.00019564,2]
[386606143,1758416752292,-480.0,0.00019564,2]
[386606144,1758416755256,247.94955787,0.00019564,2]
[386606145,1758416761145,480.0,0.00019564,2]
[386606146,1758416764306,560.99,0.00019564,2]
[386606147,1758416768898,1418.44,0.00019564,2]
[386606148,1758416777382,1269.44,0.00019564,2]
[386606149,1758416788910,826.29,0.00019564,2]
[386606150,1758416813662,480.0,0.00019564,2]
[386606151,1758416814518,929.96,0.00019564,2]
[386606152,1758416816193,480.0,0.00019564,2]
[386606153,1758416821215,649.7607735,0.00018823,2]
[386606154,1758416821759,179.75415021,0.00019564,2]
[386606155,1758416825766,480.0,0.00019564,2]
[386606156,1758416837944,77.42551842,0.00019564,2]
[386606157,1758416837967,402.57448158,0.00019564,2]
[386606158,1758416840112,-204.0138,0.00019565,2]
[386606159,1758416845792,609.42,0.00019564,2]
[386606160,1758416846670,1056.58,0.00019395,2]
[386606161,1758416853444,748.05,0.00019564,2]
[386606162,1758416860807,706.98,0.00019564,2]
[386606163,1758416862504,843.13,0.00019564,2]
[386606164,1758416879593,716.88,0.00019564,2]
[386606165,1758416880362,241.54,0.00015984,2]
[386606166,1758416886001,1176.84,0.00019564,2]
[386606167,1758416888764,480.0,0.00019564,2]
[386606168,1758416889329,480.0,0.00019564,2]
[386606169,1758416891373,478.47785114,0.00019564,2]
[386606170,1758416893549,480.0,0.00019564,2]
[386606171,1758416901280,1216.55,0.00019564,2]
[386606172,1758416908149,362.98766728,0.00019564,2]
[386606173,1758416908172,375.98233272,0.00019564,2]
[386606174,1758416909327,480.0,0.00019564,2]
[386606175,1758416913024,480.0,0.00019564,2]
[386606176,1758416920513,480.0,0.00019564,2]
[386606177,1758416929378,1128.73,0.00019396,2]
[386606178,1758416931835,480.0,0.00019564,2]
[386606179,1758416939683,193.11,0.00019564,2]
[386606180,1758416940469,480.0,0.00019564,2]
[386606181,1758416941054,574.75782134,0.00019564,2]
[386606182,1758416942834,480.0,0.00019564,2]
[386606183,1758416944866,480.0,0.00019564,2]
[386606184,1758416945347,563.33,0.00019564,2]
[386606185,1758416948054,480.0,0.00019564,2]
[386606186,1758416950305,480.0,0.00019564,2]
[386606187,1758416958728,480.0,0.00019564,2]
[386606188,1758416966152,-490.0,0.00019565,2]
[386606189,1758416979459,1359.34,0.00019564,2]
[386606190,1758416995604,480.0,0.00019564,2]
[386606191,1758416998024,480.0,0.00019564,2]
[386606192,1758417000166,44.75984594,0.00019564,2]
[386606193,1758417000303,747.10015406,0.00019564,2]
[386606194,1758417006962,480.0,0.00019564,2]
[386606195,1758417012156,1152.94,0.00019399,2]
[386606196,1758417016051,480.0,0.00019564,2]
[386606197,1758417018677,480.0,0.00019564,2]
[386606198,1758417018794,537.62,0.00019564,2]
[386606199,1758417020952,480.0,0.00019564,2]
[386606200,1758417025189,480.0,0.00019564,2]
[386606201,1758417029962,891.21,0.00019564,2]
[386606202,1758417031758,708.18,0.00019564,2]
[386606245,1758417033002,-1651.55036954,0.00019565,2]
[386606251,1758417033059,-2469.93847323,0.00019565,2]
[386606254,1758417033071,-651.00932369,0.00019565,2]
[386606256,1758417033084,-1260.16271302,0.00019565,2]
[386606258,1758417033095,-22991.47130687,0.00019565,2]
[386606285,1758417036387,1165.86,0.00019564,2]
[386606286,1758417038752,-5234.10145339,0.00019565,2]
[386606287,1758417038764,-12615.42331456,0.00019565,2]
[386606288,1758417038774,-2494.67448492,0.00019565,2]
[386606289,1758417038786,-7221.7577573,0.00019565,2]
[386606290,1758417038807,-1515.65928197,0.00019565,2]
[386606408,1758417047168,-455.590158,0.00019564,2]
[386606409,1758417052778,-24.409842,0.00019564,2]
[386606410,1758417052821,-7608.64287404,0.00019565,2]
[386606411,1758417053003,-10000.01,0.00019565,2]
[386606412,1758417053029,-10000.01,0.00019565,2]
[386606413,1758417053178,-10000.01,0.00019565,2]
[386606414,1758417053310,-3998.1936844,0.00019565,2]
[386606415,1758417053333,-2003.6226312,0.00019565,2]
[386606416,1758417053411,-500.0,0.00019565,2]
[386606417,1758417053440,-500.0,0.00019565,2]
[386606418,1758417053477,-500.0,0.00019565,2]
[386606419,1758417053506,-500.0,0.00019565,2]
[386606420,1758417053534,-500.0,0.00019565,2]
[386606421,1758417053562,-500.0,0.00019565,2]
[386606422,1758417053589,-500.0,0.00019565,2]
[386606423,1758417053618,-500.0,0.00019565,2]
[386606424,1758417053649,-319.341796,0.00019565,10]
[386606425,1758417053677,-500.0,0.000196,2]
[386606426,1758417053792,-500.0,0.000196,2]
[386606427,1758417053895,-361.326408,0.000196,2]
[386606428,1758417053909,-9000.01,0.000196,2]
[386606429,1758417053937,-10000.01,0.000196,2]
[386606430,1758417053994,-10000.01,0.000196,2]
[386606431,1758417054171,-71.65166103,0.000196,2]
[386606432,1758417059785,-329.42675165,0.00019664,2]
[386606433,1758417059814,-480.0,0.00019664,2]
[386606434,1758417059849,-480.0,0.00019664,2]
[386606435,1758417059878,-480.0,0.00019664,2]
[386606436,1758417059907,-480.0,0.00019664,2]
[386606437,1758417059935,-644.74,0.00019664,2]
[386606438,1758417059963,-335.2241267,0.00019664,2]
[386606439,1758417059992,-480.0,0.00019664,2]
[386606440,1758417060022,-480.0,0.00019664,2]
[386606441,1758417060051,-480.0,0.00019664,2]
[386606442,1758417060080,-181.2282433,0.00019664,2]
[386606443,1758417060161,-298.7717567,0.00019664,2]
[386606444,1758417060189,-480.0,0.00019664,2]
[386606445,1758417060219,-360.29770667,0.00019664,2]
[386606446,1758417060249,-511.33989218,0.00019664,2]
[386606447,1758417060278,-732.09,0.00019664,2]
[386606448,1758417060308,-480.0,0.00019664,2]
[386606449,1758417060339,-480.0,0.00019664,2]
[386606450,1758417060368,-568.12903389,0.00019664,2]
[386606451,1758417060396,-480.0,0.00019664,2]
[386606452,1758417060423,-480.0,0.00019664,2]
[386606453,1758417060518,-670.21,0.00019664,2]
[386606454,1758417060550,-3616.89,0.00019664,2]
[386606455,1758417060579,-480.0,0.00019664,2]
[386606456,1758417060757,-480.0,0.00019664,2]
[386606457,1758417060786,-480.0,0.00019664,2]
[386606458,1758417060816,-480.0,0.00019664,2]
[386606459,1758417060844,-500.0,0.00019664,2]
[386606460,1758417060874,-515.12,0.00019664,2]
[386606461,1758417060903,-480.0,0.00019664,2]
[386606462,1758417060937,-480.0,0.00019664,2]
[386606463,1758417060968,-480.0,0.00019664,2]
[386606464,1758417060998,-480.0,0.00019664,2]
[386606465,1758417061026,-480.0,0.00019664,2]
[386606466,1758417061171,-480.0,0.00019664,2]
[386606467,1758417061202,-2610.79,0.00019664,2]
[386606468,1758417061438,-3818.43,0.00019664,2]
[386606469,1758417061468,-480.0,0.00019664,2]
[386606470,1758417061497,-480.0,0.00019664,2]
[386606471,1758417061593,-480.0,0.00019664,2]
[386606472,1758417061620,-480.0,0.00019664,2]
[386606473,1758417061652,-1511.49,0.00019664,2]
[386606474,1758417061680,-480.0,0.00019664,2]
[386606475,1758417061709,-480.0,0.00019664,2]
[386606476,1758417061738,-480.0,0.00019664,2]
[386606477,1758417061767,-692.96,0.00019664,2]
[386606478,1758417061797,-311.11,0.00019664,2]
[386606479,1758417061965,-168.89,0.00019664,2]
[386606480,1758417061995,-480.0,0.00019664,2]
[386606481,1758417062029,-480.0,0.00019664,2]
[386606482,1758417062058,-480.0,0.00019664,2]
[386606483,1758417062086,-417.15472785,0.00019665,2]
[386606484,1758417062115,-500.0,0.00019665,2]
[386606485,1758417062144,-480.0,0.00019764,2]
[386606486,1758417062185,-907.5,0.00019764,2]
[386606487,1758417062222,-918.08248977,0.00019765,2]
[386606488,1758417062372,-3714.79287727,0.00019765,2]
[386606489,1758417062402,-505.44711076,0.00019765,2]
[386606490,1758417062430,-513.53440315,0.00019765,2]
[386606491,1758417062575,-532.46121764,0.00019765,2]
[386606492,1758417062606,-411.20595029,0.00019765,2]
[386606493,1758417062638,-480.0,0.00019838,2]
[386606494,1758417062669,-480.0,0.00019838,2]
[386606495,1758417062699,-480.0,0.00019838,2]
[386606496,1758417062730,-887.39,0.00019838,2]
[386606497,1758417062758,-480.0,0.00019838,2]
[386606498,1758417062787,-480.0,0.00019838,2]
[386606499,1758417062815,-480.0,0.00019838,2]
[386606500,1758417062844,-19.58566414,0.00019838,2]
[386606501,1758417063713,-423.16881763,0.00019838,2]
[386606502,1758417063728,-115.55551823,0.00019838,2]
[386606503,1758417063738,-389.89159253,0.00019838,2]
[386606504,1758417063752,-90.10840747,0.00019838,2]
[386606505,1758417063762,-609.42,0.00019838,2]
[386606506,1758417063771,-346.46721332,0.00019838,2]
[386606507,1758417063834,-360.51278668,0.00019838,2]
[386606508,1758417063844,-171.94843096,0.00019838,2]
[386606509,1758417063858,-411.20595029,0.00019838,2]
[386606510,1758417063871,-259.97561875,0.00019838,2]
[386606511,1758417063882,-220.02438125,0.00019838,2]
[386606512,1758417064055,-480.0,0.00019838,2]
[386606513,1758417064103,-16.85561875,0.00019838,2]
[386606514,1758417064112,-463.14438125,0.00019838,2]
[386606515,1758417064128,-713.69561875,0.00019838,2]
[386606516,1758417064137,-173.69438125,0.00019838,2]
[386606517,1758417064152,-306.30561875,0.00019838,2]
[386606518,1758417064162,-173.69438125,0.00019838,2]
[386606519,1758417064177,-306.30561875,0.00019838,2]